Cogmind - Beta 16 @@@ ROGUE MODE // 2026.01.05 @ 13:40:39 Player: jam Result: Destroyed by 18-763(R) with Subdweller Machine Gun Performance ------------- Evolutions (0) 0 Regions Visited (2) 400 Robots Destroyed (20) 100 Value Destroyed (463) 463 Prototype IDs (0) 0 Alien Tech Used (0) 0 Bonus (-6) -6 TOTAL SCORE: 957 Bonus ------- Friendly Fire -6 Cogmind --------- Core Integrity 0/250 Matter 194/300 Energy 186/200 System Corruption 1% Temperature Cool (2) Movement Walking (120) Location -10/Subcaves Parts ------- > --- POWER (1) -------- Subdweller Power Source > --- PROPULSION (2) --- Aluminum Leg Aluminum Leg > --- UTILITY (2) ------ Makeshift Light Armor Plating > --- WEAPON (2) ------- Riot Gun Battle Rifle > --- INVENTORY (5) ---- Light Ion Engine Subdweller Optics Terrain Scan Processor Scrap Shield Peak State ------------ > --- POWER ------------ Light Nuclear Core > --- PROPULSION ------- Aluminum Leg Aluminum Leg > --- UTILITY ---------- Small Storage Unit Makeshift Light Armor Plating > --- WEAPON ----------- Riot Gun Battle Cannon > --- INVENTORY -------- Light Ion Engine Light Ion Engine Aluminum Leg Structural Scanner Terrain Scan Processor Riot Gun Battle Rifle Mining Laser [Rating: 16] Favorites ----------- Power Light Nuclear Core Engine Light Ion Engine Power Core Light Nuclear Core Propulsion Aluminum Leg Leg Aluminum Leg Utility Small Storage Unit Device Improved Terrain Scanner Storage Small Storage Unit Protection Makeshift Light Armor Plating Weapon Riot Gun Energy Gun Riot Gun Ballistic Gun Light Assault Rifle Ballistic Cannon Battle Cannon Special Weapon Mining Laser Build | -11 -10 -10 ------- Run | Yrd Mat Sub Slots Evolved . | . . . Power . | . . . Propulsion . | . . . Utility . | . . . Weapon . | . . . Parts Attached 21 | 7 5 9 Power 5 | 1 2 2 Engine 4 | 1 1 2 Core 1 | . 1 . Reactor . | . . . Propulsion 4 | 2 1 1 Treads . | . . . Leg 4 | 2 1 1 Wheel . | . . . Hover . | . . . Flight . | . . . Utility 4 | 2 1 1 Device 2 | 1 1 . Storage 1 | 1 . . Processor . | . . . Hackware . | . . . Protection 1 | . . 1 Artifact . | . . . Weapon 8 | 2 1 5 Energy Gun 3 | 1 . 2 Energy Cannon . | . . . Ballistic Gun 3 | 1 1 1 Ballistic Cannon 1 | . . 1 Launcher . | . . . Special Weapon 1 | . . 1 Impact Weapon . | . . . Slashing Weapon . | . . . Piercing Weapon . | . . . Special Melee Weapon . | . . . Unidentified Prototypes . | . . . Corrupted Parts 1 | . 1 . System Corruption 1 | . 1 . Parts Lost 8 | . 1 7 Power 2 | . . 2 Propulsion 1 | . . 1 Utility 2 | . 1 1 Weapon 3 | . . 3 Highest Loss Streak 4 | . 1 4 To Critical Strikes . | . . . Average Backups 7 | 2 5 7 Power 1 | . 1 1 Propulsion 1 | 1 1 . Utility 1 | . . 2 Weapon 2 | . 2 2 Tool/Special . | . . . Unused Backups 6 | . 2 4 Power . | . . . Propulsion 2 | . 2 . Utility 2 | . . 2 Weapon 2 | . . 2 Tool/Special . | . . . Average Slot Usage (%) 99 | . 96 99 Engine 3 | . 10 2 Core 10 | . 3 11 Leg 27 | . 28 27 Device 2 | . 10 1 Storage 14 | . 14 14 Protection 10 | . . 12 Energy Gun 13 | . 14 13 Ballistic Gun 4 | . 14 3 Ballistic Cannon 9 | . . 10 Peak Build Rating 16 | 9 9 16 Average Rating 13 | 5 8 14 On Entrance 6 | . 9 9 Avg Prop Armor Cover (%) . | . . . Naked Turns . | . . . Heaviest Build 20 | 12 14 20 Greatest Support 20 | 20 20 20 Greatest Overweight (x) 1 | 1 . 1 Average Overweight (x) . | . . . Largest Inventory Capacity 8 | 8 8 8 Average Capacity 7 | 7 8 7 Most Carried 8 | 5 8 8 Average Carried 7 | 2 5 7 Final Capacity 8 | 8 8 5 Final Carried 8 | 5 8 5 Class Distribution -------------------- 93% | Mutant 6% | Scavenger-Mutant Dominant Class ---------------- Mutant | -10/Materials Mutant | -10/Subcaves Resources | -11 -10 -10 ----------- Run | Yrd Mat Sub Matter Collected 523 | 255 65 203 Remotely . | . . . Salvage Created 598 | 22 215 361 Parts 42 | 3 22 17 Haulers Intercepted . | . . . Recyclers Shooed . | . . . Parts Field Recycled . | . . . Retrieved Matter . | . . . Parts Self-Destructed 9 | . . 9 Prevented 3 | . . 3 Parts Restored . | . . . Kills | -11 -10 -10 ------- Run | Yrd Mat Sub Combat Hostiles Destroyed 14 | . 4 10 Guns 11 | . 3 8 Cannons 2 | . . 2 AOE 1 | . 1 . Classes Destroyed 6 | 1 3 2 Builder 3 | . 3 . Tunneler 1 | 1 . . Turret 2 | . . 2 Swarmer 6 | . 2 4 Grunt 2 | . 2 . Subdweller 6 | . . 6 Best Kill Streak 5 | 1 5 5 Combat Bots Only 3 | . 2 3 Max Kills in Single Turn 1 | 1 1 1 Gunslinging . | . . . Exploded 1 | . 1 . Melee . | . . . Uniques/NPCs Destroyed . | . . . Combat | -11 -10 -10 -------- Run | Yrd Mat Sub Hostile Shots Fired 133 | . 40 93 Missed 53 | . 18 35 Hits 80 | . 22 58 Projectile 80 | . 22 58 Critical Strikes 1 | . . 1 Damage Taken 1209 | . 253 956 Core 251 | . 33 218 Absorbed by Shields . | . . . Core Remaining (%) 100 | 100 . . Volleys Fired 76 | 1 24 51 Largest 2 | 2 2 2 Hottest 133 | 60 60 133 Shots Fired 145 | 2 48 95 Gun 115 | 2 48 65 Cannon 23 | . . 23 Launcher . | . . . Special 7 | . . 7 Kinetic 74 | 1 24 49 Thermal 7 | . . 7 Explosive . | . . . Electromagnetic 64 | 1 24 39 Robot Hit Streak 15 | 1 9 15 Robot Miss Streak 11 | . 11 5 Penetration Max . | . . . Secondary Targets 1 | . 1 . Max Gunslinging Chain 1 | . 1 . Shots Hit Robots 92 | 1 24 67 Core Hits 41 | 1 14 26 Critical Kills . | . . . Critical Parts Destroyed . | . . . Critical Strikes 1 | . . 1 Blast 1 | . . 1 Melee Attacks . | . . . Impact . | . . . Slashing . | . . . Piercing . | . . . Sneak Attacks . | . . . Combat Hostiles . | . . . Follow-up Attacks . | . . . Damage Inflicted 1186 | 13 318 855 Guns 872 | 13 286 573 Cannons 243 | . . 243 Explosions 71 | . 32 39 Melee . | . . . Ramming . | . . . Kinetic 531 | . 97 434 Thermal 71 | . 32 39 Explosive . | . . . Electromagnetic 584 | 13 189 382 Impact . | . . . Slashing . | . . . Piercing . | . . . Highest Corruption 1 | . 1 1 Average Corruption 1 | . 1 1 Corruption Purged . | . . . Corruption Blocked . | . . . Effects 7 | . 1 6 Message Errors 1 | . . 1 Matter Fused 3 | . . 3 Heat Flow Errors 1 | . 1 . Energy Discharges 1 | . . 1 Misfires 1 | . . 1 Overload Shots . | . . . Overflow Damage 6 | . . 6 Projectiles 6 | . . 6 Explosions . | . . . Melee . | . . . Knockbacks 3 | . . 3 Impact . | . . . Kinetic 3 | . . 3 Secondary . | . . . Self-Inflicted Damage 27 | . 27 . Shots 1 | . 1 . Rammed . | . . . Targets Rammed . | . . . Kicked . | . . . Crushed . | . . . Highest Temperature 168 | 20 168 24 Average Temperature 35 | 15 53 5 Received Heat Transfer 339 | . 69 270 Siege Activations . | . . . Martial Activations . | . . . Shielding Activations . | . . . Robots Disrupted . | . . . Combat Hostiles . | . . . Robots Corrupted . | . . . Combat Hostiles . | . . . Parts Fried 1 | . . 1 Impact Corruptions . | . . . Robots Melted . | . . . Combat Hostiles . | . . . Parts Melted . | . . . Heat Transferred 100 | . 50 50 Parts Sabotaged . | . . . Parts Stolen . | . . . Parts Stripped . | . . . Power Chain Reactions 2 | . 1 1 Alert | -11 -10 -10 ------- Run | Yrd Mat Sub Maximum Alert Level . | . . . Low Security (%) 100 | 100 100 . Level 1 . | . . . Level 2 . | . . . Level 3 . | . . . Level 4 . | . . . Level 5 . | . . . High Security . | . . . Max Security . | . . . Peak Influence 74 | 5 74 . Initial . | . . . Average 17 | . 25 . Influence Increases 604 | 5 119 480 Destroy 0b10 Robot/C 200 | . 80 120 Destroy 0b10 Robot/NC 20 | 5 15 . Destroy Leader 20 | . 20 . Destroy Structure 4 | . 4 . Lose Combat Pursuer 360 | . . 360 Influence Decreases 282 | 5 60 217 Entered New Map 29 | . . 29 Time Decay 183 | 5 50 128 Lost Part 70 | . 10 60 Squads Dispatched . | . . . Investigation . | . . . Extermination . | . . . Reinforcement . | . . . Assault . | . . . Garrison . | . . . Intercept . | . . . Searches Triggered . | . . . Construction Impeded . | . . . Haulers Reinforced . | . . . Active Scanning Responses . | . . . Cargo Convoy Interrupts . | . . . Stealth | -11 -10 -10 --------- Run | Yrd Mat Sub Distress Signals . | . . . Communications Jammed . | . . . Distress Signals . | . . . Times Spotted 37 | . 8 29 Peak Tracking Total 4 | . 3 4 Tactical Retreats 3 | . . 3 Traps | -11 -10 -10 ------- Run | Yrd Mat Sub Traps Triggered . | . . . Indirectly . | . . . Trap Hack Attempts . | . . . Triggered . | . . . Disarmed . | . . . Reprogrammed . | . . . Reused . | . . . Traps Extracted . | . . . Installed . | . . . Triggered . | . . . Machines | -11 -10 -10 ---------- Run | Yrd Mat Sub Machines Disabled 2 | . . 2 Max in Single Turn 1 | . . 1 Machines Repaired . | . . . Machines Dismantled . | . . . Machines Sabotaged . | . . . Overloaded Fab Kills . | . . . Hacking | -11 -10 -10 --------- Run | Yrd Mat Sub Machines Accessed 1 | . . 1 Terminals . | . . . Fabricators . | . . . Repair Stations . | . . . Recycling Units . | . . . Scanalyzers . | . . . Garrison Access . | . . . Total Hacks 4 | . . 4 Successful 4 | . . 4 Failed . | . . . Catastrophic . | . . . Database Lockouts . | . . . Manual . | . . . Terminals . | . . . Fabricators . | . . . Repair Stations . | . . . Recycling Units . | . . . Scanalyzers . | . . . Garrison Access . | . . . Terminal Hacks 4 | . . 4 Record 4 | . . 4 Fabricator Hacks . | . . . Repair Station Hacks . | . . . Recycling Unit Hacks . | . . . Scanalyzer . | . . . Garrison Access Hacks . | . . . Unauthorized Hacks . | . . . Terminals . | . . . Fabricators . | . . . Repair Stations . | . . . Recycling Units . | . . . Scanalyzers . | . . . Garrison Access . | . . . Data Cores Recovered . | . . . Used . | . . . Hacking Detections . | . . . Full Trace Events . | . . . Feedback Events . | . . . Feedback Blocked . | . . . Robot Schematics Acquired . | . . . Robots Built . | . . . Authchips . | . . . Time . | . . . Total Robot Build Rating . | . . . Part Schematics Acquired . | . . . Parts Built . | . . . Authchips . | . . . Time . | . . . Total Part Build Rating . | . . . Part Studies Acquired . | . . . Parts Repaired . | . . . Time . | . . . Parts Recycled . | . . . Recycled Matter . | . . . Retrieved Matter . | . . . Retrieved Components . | . . . Parts Scanalyzed . | . . . Part Schematics Acquired . | . . . Parts Damaged . | . . . Bothacking | -11 -10 -10 ------------ Run | Yrd Mat Sub Used RIF Installer . | . . . Robots Hacked . | . . . Non-combat . | . . . Combat . | . . . Robot Hacks Applied . | . . . Relay Couplers Released . | . . . Fabnet Peak Effective % . | . . . Robots Rewired . | . . . Allies Hacked . | . . . Hacks Repelled . | . . . Allies | -11 -10 -10 -------- Run | Yrd Mat Sub Total Allies . | . . . Largest Group . | . . . Highest-Rated Group . | . . . Highest-Rated Ally . | . . . Total Orders . | . . . Ally Attacks . | . . . Total Damage . | . . . Kills . | . . . Allies Corrupted . | . . . Allies Melted . | . . . Intel | -11 -10 -10 ------- Run | Yrd Mat Sub Active Infowar (turns) 291 | 11 156 124 Terrain 156 | 11 145 . Structural 135 | . 11 124 Robot Analysis Total . | . . . Derelict Logs Recovered 1 | . . 1 Drone Launches . | . . . Drone Recoveries . | . . . Exploration | -11 -10 -10 ------------- Run | Yrd Mat Sub Turns Passed 1541 | 93 203 1245 Spaces Moved 1056 | 67 104 885 Core 8 | 8 . . Treads . | . . . Legs 1048 | 59 104 885 Wheels . | . . . Hover . | . . . Flight . | . . . Fastest Speed 50 | 50 120 120 Average Speed 119 | 112 120 120 Slowest Speed 190 | 120 120 190 Overloaded Moves . | . . . Propulsion Burnouts . | . . . Robots Hopped . | . . . Potential Cave-ins . | . . . Cave-ins Triggered . | . . . Exploration Rate (%) 24 | 3 17 53 Regions Visited 2 Branch Regions 1 Pre-discovered Areas 2 | . . 2 Known Exits Taken . | . . . Unknown Exits Taken 2 | 1 1 . Scrap Searched 8 | . . 8 Spaces Dug . | . . . Terrain Destroyed 8 | . 4 4 Melee . | . . . Projectile . | . . . AOE 8 | . 4 4 Terrain Rammed . | . . . Walls Destroyed . | . . . Machines Disabled . | . . . Actions | -11 -10 -10 --------- Run | Yrd Mat Sub Total 1179 | 79 139 961 Wait 3 | . . 3 Move 1054 | 66 103 885 Hop . | . . . Pick Up 12 | 5 3 4 Fast Attach 11 | 7 1 3 Attach 6 | . . 6 Detach . | . . . Swap 8 | . 4 4 Drop 9 | . 4 5 Fire 76 | 1 24 51 Melee . | . . . Ram . | . . . Kick . | . . . Crush . | . . . Escape Stasis . | . . . Rewire . | . . . Trap . | . . . Miscellaneous . | . . . Route ------- -11/Scrapyard -10/Materials -10/Subcaves (discovered 3 exits: [*Mat] / [*Rec] / [Scr]) History --------- Turn | Location | Event 17 | -11/Scrapyard | Discovered new exit (range 16) 94 | -11/Scrapyard | Entered Materials 248 | -10/Materials | Discovered new exit (range 9) 297 | -10/Materials | Entered Subcaves 298 | -10/Subcaves | Approached by a straggling Scientist 550 | -10/Subcaves | Learned location of Zion (-6) 550 | -10/Subcaves | Met a Zionite searching for "candidates" 639 | -10/Subcaves | Learned Materials emergency access door positions 664 | -10/Subcaves | A swath of the cavern ceiling suddenly collapsed 700 | -10/Subcaves | Build established: Mutant 1273 | -10/Subcaves | Discovered new exit (range 12) 1357 | -10/Subcaves | Core integrity fell below 50% 1379 | -10/Subcaves | Core integrity fell below 20% 1405 | -10/Subcaves | Lost 4 parts (2p1n1w) 1451 | -10/Subcaves | Visited Clippyterm 1454 | -10/Subcaves | Learned location of Deep Caves (-6) 1521 | -10/Subcaves | Discovered new exit (range 13) 1522 | -10/Subcaves | Scientist uncovered a shortcut to Scraptown 1542 | -10/Subcaves | Destroyed by 18-763(R) with Subdweller Machine Gun Last Messages --------------- >>Record! "Some Assembly Required" It looks like you want to find the nearest Z-Facility, would you like help? World map updated: -6/Deep Caves. >>Record! "Letterhead" It looks like you're writing a letter, sorry I don't know how to do that. ZM-MJC(c): "I think it's somewhere northwest of here" 01477_ System corrupted: Matter fused (-9). 01502_ B1-DX4(R) destroyed. 01507_ T4-NNY(R) misfires. 01507_ Sub. Optics fried. 01507_ T4-NNY(R) destroyed. 01513_ Acquired Scrap Shield. 01521_ EXIT=FOUND 01522_ ZM-MJC(c): "Hah, right again, there it is!" [Achievement: Nice Directions, Buddy] 01535_ Riot Gun destroyed. 01540_ Sml. Storage Unit destroyed. 01541_ CO-H2P(R) affixes Scrap Shield Fragment to Scrap Shield. Map ----- +----------------------------------------------------+ | ??????????????????????#####??????????????????????? | | ?????????????????????????????????????????????????? | | ?????????????????????????????????????????????????? | | ?????????????????????????????????????????????????? | | ?????????????????????????????????????????????????? | | ?????????????????????????????????????????????????? | | ?????????????????????????????????????????????????? | | ?????????????????????????????????????????????????? | | ?????????????????????????????????????????????????? | | ?????????????????????????????????????????????????? | | ?????????????????????????????????????????????????? | | ?????????????????????????????????????????????????? | | ?????????????????????????????????????????????????? | | ?????????????????????????????????????????????????? | | ?????????????????????????????????????????????????? | | ????????????????? #?????????????????????????????? | | ?????????????????? #############???>????????????? | | ?????????????????? ????? ???????????? | | ??????????????????? ????? ??????????? | | ???????????????????? #????? ?????????? | | ????????????????????"" "" #????? # ?????????? | | ???????????????#????## "" ##???? ??????????? | | ??????????????## "# # "" ##?## #??????????? | | ??????????????# < "" #?# #??????????? | | ????????????????? " R #? ###????????? | | ????????????????????#####@| #?# #????????? | | ????????????????????##### ! ### #????????? | | ????????????????????# " " &]### #????????? | | ??????????????????#"""""""" !%### #????????? | | ???????????????????"" ####" &R #?????????? | | ???????????????????""??###" ##?????????? | | ???????????????????"??#"" " ##?????????? | | ??????????????????????#"" ##????????? | | ??????????????????????#"" #????????? | | ??????????????????????#"" ##???????? | | ??????????????????????# #????#### | | ??????????????????????# ## #????#""" | | ??????????????????????## ##?### #????#""X | | ???????????????????????###?????# ### ##????#" | | ???????????????????????????????###### #?????### | | ???????????????????????????????## #??????## | | ??????????????????????????????## #????### | | ?????????????????????????????## #???## | | ?????????????????????????????# #?### | | ?????????????????????????????# #?# | | ????????????????????????????# ## #### | | ???????????????????????????# #?# ### | | ???????????????????????????# #??### | | ???????????????????????????### ?????## | | ?????????????????????????????##???????###### | +----------------------------------------------------+ Best States ------------- Heat Dissipation 25 Energy Generation 15 Energy Capacity 200 Matter Stores 300 Matter Capacity 300 Sight Range 16 Terrain Scan Range 16 Terrain Scan Density 10 Armor Coverage 100 Evasion (%) 55 Item Schematics ----------------- None Robot Schematics ------------------ None Fabricated ------------ Nothing Repaired ---------- Nothing Studied --------- None Alien Tech Used ----------------- None Achievements -------------- Nice Directions, Buddy Challenges ------------ None Game ------ Seed MachineChromaticWell Manual? 0 Play Time 00:13:07 Cumulative 10.6 hours Start 2026.01.05 @ 13:28:54 End 2026.01.05 @ 13:40:39 Sessions 1 Manual Loads 0 Difficulty Rogue Special Mode None Game No. 21 Rogue 18 Adventurer 3 Explorer 0 Win Type - Total 0 Types 0/0/0/0/0/0/0/0/0/0 Lore% 8 Gallery% 17 Achievement% 13 Wizard Run 0 Options --------- Layout 0 ASCII 0 Keyboard 0 Movement Mouse Keybinds 0 Fullscreen 1 Font 18/SmallcapsGlow Map View 65x51 Zoom Use 0% Tactical HUD 1 Map Filters NONE Filters NONE Steam 1 RUN: bf5f8fbd-d83c-4ef1-91eb-adfb466d4c5a